Workbook

Sheet 解析解
A1: Dy= | B1: m2/s | C1: 0.01 | D1: 0.01 | E1: 0.01 | F1: 0.01 | G1: 0.01 | H1: 0.01 | I1: 0.01 | J1: 0.01 | K1: 0.01 | L1: 0.01 | M1: 0.01
A2: k1= | B2: /s | C2: 0.02 | D2: 0.02 | E2: 0.02 | F2: 0.02 | G2: 0.02 | H2: 0.02 | I2: 0.02 | J2: 0.02 | K2: 0.02 | L2: 0.02 | M2: 0.02
A3: v= | B3: m/s | C3: 0.01 | D3: 0.01 | E3: 0.01 | F3: 0.01 | G3: 0.01 | H3: 0.01 | I3: 0.01 | J3: 0.01 | K3: 0.01 | L3: 0.01 | M3: 0.01
A4: y= | B4: m | C4: 2.5 | D4: 2.25 | E4: 2 | F4: 1.75 | G4: 1.5 | H4: 1.25 | I4: 1 | J4: 0.75 | K4: 0.5 | L4: 0.25 | M4: 0.001
A5: (L/v)=τ空間時間 | B5: s | C5: =C4/C3 -> 250 | D5: =D4/D3 -> 225 | E5: =E4/E3 -> 200 | F5: =F4/F3 -> 175 | G5: =G4/G3 -> 150 | H5: 125 | I5: 100 | J5: 75 | K5: 50 | L5: 25 | M5: 0.1
A6: (D/vL) | C6: =C1/C3/C4 -> 0.4 | D6: =D1/D3/D4 -> 0.4444444444 | E6: =E1/E3/E4 -> 0.5 | F6: =F1/F3/F4 -> 0.5714285714 | G6: =G1/G3/G4 -> 0.6666666667 | H6: 0.8 | I6: 1 | J6: 1.333333333 | K6: 2 | L6: 4 | M6: =M1/M3/M4 -> 1000
A7: Pe=vL/D | E7: =1/E6 -> 2
A8: a= | C8: =SQRT(1+4*C2*C5*C6) -> 3 | D8: 3 | E8: 3 | F8: 3 | G8: 3 | H8: 3 | I8: 3 | J8: 3 | K8: 3 | L8: 3 | M8: 3
A9: b= | E9: =1/2/E6 -> 1
A13: 出口濃度cA/cA0 | E13: =(4*E8*EXP(E9))/((1+E8)^2*EXP(E8*E9)-(1-E8)^2*EXP(-E8*E9)) -> 0.1015644007
C14: =4*C8*EXP(0.5*(1/C6))/((1+C8)^2*EXP((C8/2)*(1/C6))-(1-C8)^2*EXP((-C8/2)*(1/C6))) -> 0.06157226263 | D14: 0.07907256453 | E14: 0.1015644007 | F14: =4*F8*EXP(0.5*(1/F6))/((1+F8)^2*EXP((F8/2)*(1/F6))-(1-F8)^2*EXP((-F8/2)*(1/F6))) -> 0.1305016601 | G14: 0.1678136805 | H14: 0.2161494345 | I14: 0.2793870464 | J14: 0.3638626242 | K14: 0.4817724879 | L14: 0.6623143771 | M14: 0.9980039914
A20: 濃度分布
A21: cA/CA0 | E21: =(2*(1+$E$8)*EXP($E$8*$E$9)*EXP((1-$E$8)*(E4/$E$4)*$E$9)-2*(1-$E$8)*EXP(-$E$8*$E$9)*EXP((1+$E$8)*(E4/$E$4)*$E$9))/((1+$E$8)^2*EXP($E$8*$E$9)-(1-$E$8)^2*EXP(-$E$8*$E$9)) -> 0.1015644007 | F21: =(2*(1+$E$8)*EXP($E$8*$E$9)*EXP((1-$E$8)*(F4/$E$4)*$E$9)-2*(1-$E$8)*EXP(-$E$8*$E$9)*EXP((1+$E$8)*(F4/$E$4)*$E$9))/((1+$E$8)^2*EXP($E$8*$E$9)-(1-$E$8)^2*EXP(-$E$8*$E$9)) -> 0.1074748222 | G21: 0.1240887435 | H21: 0.1508952523 | I21: 0.1886355255 | J21: 0.2391086983 | K21: 0.3051389075 | L21: 0.3906641743 | M21: 0.5004312899
A22: cA/CA0 | C22: =(2*(1+$E$8)*EXP(($E$8/2)*$E$7)*EXP((1-$E$8)*$E$7*(C4/$E$4)/2)-2*(1-$E$8)*EXP(-($E$8/2)*$E$7)*EXP((1+$E$8)*$E$7*(C4/$E$4)/2))/((1+$E$8)^2*EXP(($E$8/2)*$E$7)-(1-$E$8)^2*EXP(-($E$8/2)*$E$7)) -> 0.1330948369 | E22: =(2*(1+$E$8)*EXP(($E$8/2)*$E$7)*EXP((1-$E$8)*$E$7*(E4/$E$4)/2)-2*(1-$E$8)*EXP(-($E$8/2)*$E$7)*EXP((1+$E$8)*$E$7*(E4/$E$4)/2))/((1+$E$8)^2*EXP(($E$8/2)*$E$7)-(1-$E$8)^2*EXP(-($E$8/2)*$E$7)) -> 0.1015644007 | F22: =(2*(1+$E$8)*EXP(($E$8/2)*$E$7)*EXP((1-$E$8)*$E$7*(F4/$E$4)/2)-2*(1-$E$8)*EXP(-($E$8/2)*$E$7)*EXP((1+$E$8)*$E$7*(F4/$E$4)/2))/((1+$E$8)^2*EXP(($E$8/2)*$E$7)-(1-$E$8)^2*EXP(-($E$8/2)*$E$7)) -> 0.1074748222 | G22: 0.1240887435 | H22: 0.1508952523 | I22: 0.1886355255 | J22: 0.2391086983 | K22: 0.3051389075 | L22: 0.3906641743 | M22: 0.5004312899
A25: 押し出し流れ
A26: cA/cA0 | C26: =1*EXP(-(C2/C3)*C4) -> 0.006737946999 | D26: 0.01110899654 | E26: =1*EXP(-(E2/E3)*E4) -> 0.01831563889 | F26: =1*EXP(-(F2/F3)*F4) -> 0.03019738342 | G26: 0.04978706837 | H26: 0.08208499862 | I26: 0.1353352832 | J26: 0.2231301601 | K26: 0.3678794412 | L26: 0.6065306597 | M26: 0.9980019987
A27: x | E27: =1-E26 -> 0.9816843611 | F27: =1-F26 -> 0.9698026166 | G27: 0.9502129316 | H27: 0.9179150014 | I27: 0.8646647168 | J27: 0.7768698399 | K27: 0.6321205588 | L27: 0.3934693403 | M27: 0.001998001333
A28: 完全混合
A29: cA/cA0 | E29: =1/(1+(E4/E3)*E2) -> 0.2 | F29: =1/(1+(F4/F3)*F2) -> 0.2222222222 | G29: 0.25 | H29: 0.2857142857 | I29: 0.3333333333 | J29: 0.4 | K29: 0.5 | L29: 0.6666666667 | M29: 0.998003992
A30: x | E30: =1-E29 -> 0.8 | F30: =1-F29 -> 0.7777777778 | G30: 0.75 | H30: 0.7142857143 | I30: 0.6666666667 | J30: 0.6 | K30: 0.5 | L30: 0.3333333333 | M30: 0.001996007984
A47: Dy | B47: 0.01 | D47: 0.01
A48: cA0 | B48: 1 | C48: mol/m3 | D48: 1
A49: k1 | B49: 0.02 | C49: /s | D49: 0.02
A50: L | B50: 2 | C50: m | D50: 4.25 | E50: 同じ反応率を与える容積（長さ）
A51: V
A52: v | B52: 0.01 | C52: m/s | D52: 0.01
A53: tR | B53: =B50/B52 -> 200 | C53: s | D53: =D50/D52 -> 425
A54: Pe=vL/D | B54: =B52*B50/B47 -> 2 | D54: =D52*D50/D47 -> 4.25
A55: D/vL | B55: =B47/B52/B50 -> 0.5
A56: 完全混合解
A57: 出口（容器内均一）濃度 | D57: 完全混合
A58: cAout | B58: =B48/(1+(B50/B52)*B49) -> 0.2 | D58: =D48/(1+(D50/D52)*D49) -> 0.1052631579
A60: 押し出し流れ解
A61: y | B61: cA
A62: 0 | B62: =$B$48*EXP(-$B$49*A62/$B$52) -> 1
A63: 0.2 | B63: =$B$48*EXP(-$B$49*A63/$B$52) -> 0.670320046
A64: 0.4 | B64: =$B$48*EXP(-$B$49*A64/$B$52) -> 0.4493289641
A65: 0.6 | B65: =$B$48*EXP(-$B$49*A65/$B$52) -> 0.3011942119
A66: 0.8 | B66: =$B$48*EXP(-$B$49*A66/$B$52) -> 0.201896518
A67: 1.12 | B67: 0.1064585044
A68: 1.2 | B68: 0.09071795329
A69: 1.4 | B69: 0.06081006263
A70: 1.6 | B70: 0.04076220398
A71: 1.8 | B71: 0.02732372245
A72: 2 | B72: 0.01831563889

Sheet 例題21管型反応器モデル
A1: 微分方程式数 | B1: 2 | F1: 定数 | I1: L= | J1: 2
A2: y= | B2: cA= | C2: g= | F2: k1= | G2: 0.02 | H2: /s | I2: (Dy/vL)= | J2: =G3/G4/J1 -> 0.5
A3: 3 | B3: 0.2751383981 | C3: 0.4755569148 | F3: Dy= | G3: 0.01 | H3: m2/s
B4: cA'= | C4: g'= | F4: v= | G4: 0.01 | H4: m/s
A5: 微分方程式→ | B5: =C3 -> 0.4755569148 | C5: =(G4*B5+G2*B3)/G3 -> 1.025833711 | F5: cA0= | G5: 1 | H5: mol/m3
A7: 積分区間y=[a, | B7: 0 | J7: 計算のまとめ
A8: b] | B8: 3 | J8: Dy | K8: 0.01 | L8: Dy | M8: 0.02 | N8: Dy | O8: 0.004 | Q8: 0.001
A9: 積分刻み幅Δy | B9: 0.1 | J9: (Dy/vL)= | K9: 0.5 | L9: (Dy/vL)= | M9: 1 | N9: (Dy/vL)= | O9: 0.2 | Q9: 0.05
A10: 計算結果 | J10: g= | K10: -0.49907 | L10: g= | M10: -0.3017 | N10: g= | O10: -0.860301 | Q10: -1.458980337 | T10: 解析解 | U10: (vL/Dy)=2 | V10: 押し出し流れ | X10: 完全混合
A11: y[m] | B11: cA[mol/m3] | C11: g(=dcA/dy) | J11: y[m] | K11: cA[mol/m3] | L11: y[m] | M11: cA[mol/m3] | N11: y[m] | O11: cA[mol/m3] | Q11: cA[mol/m3] | T11: y | U11: cA | V11: y | W11: cA | X11: y | Y11: cA
A12: 0 | B12: =G5-(-1*$G$3*C12/$G$4) -> 0.50093 | C12: -0.49907 | F12: ←初期値 | J12: 0 | K12: 0.5009 | L12: 0 | M12: 0.3966 | N12: 0 | O12: 0.6599 | Q12: 0.8541019663 | T12: 2 | U12: 0.1015644007 | V12: 0 | W12: 1 | X12: 0 | Y12: =G5/(1+(J1/G4)*G2) -> 0.2
A13: 0.1 | B13: 0.4534565176 | C13: -0.4511847136 | J13: 0.1 | K13: 0.4534565176 | L13: 0.1 | M13: 0.3676295972 | N13: 0.1 | O13: 0.5752541769 | Q13: 0.7199858721 | T13: 1.75 | U13: 0.1074748222 | V13: 0.2 | W13: 0.670320046 | X13: 2 | Y13: =Y12 -> 0.2
A14: 0.2 | B14: 0.4105441844 | C14: -0.407769403 | J14: 0.2 | K14: 0.4105441844 | L14: 0.2 | M14: 0.3409467448 | N14: 0.2 | O14: 0.5045425644 | Q14: 0.6069294727 | T14: 1.5 | U14: 0.1240887435 | V14: 0.4 | W14: 0.4493289641
A15: 0.3 | B15: 0.3717685707 | C15: -0.3683794527 | J15: 0.3 | K15: 0.3717685707 | L15: 0.3 | M15: 0.3163948882 | N15: 0.3 | O15: 0.4425270255 | Q15: 0.5116258514 | T15: 1.25 | U15: 0.1508952523 | V15: 0.6 | W15: 0.3011942119
A16: 0.4 | B16: 0.3367477667 | C16: -0.3326082979 | J16: 0.4 | K16: 0.3367477667 | L16: 0.4 | M16: 0.2938313159 | N16: 0.4 | O16: 0.3881399938 | Q16: 0.4312873631 | T16: 1 | U16: 0.1886355255 | V16: 0.8 | W16: 0.201896518
A17: 0.5 | B17: 0.3051388075 | C17: -0.3000828604 | J17: 0.5 | K17: 0.3051388075 | L17: 0.5 | M17: 0.273126405 | N17: 0.5 | O17: 0.3404458295 | Q17: 0.3635640949 | T17: 0.75 | U17: 0.2391086983 | V17: 1 | W17: 0.1353352832
A18: 0.6 | B18: 0.2766345435 | C18: -0.2704592097 | J18: 0.6 | K18: 0.2766345435 | L18: 0.6 | M18: 0.2541629614 | N18: 0.6 | O18: 0.2986249202 | Q18: 0.3064751311 | T18: 0.5 | U18: 0.3051389075 | V18: 1.143 | W18: 0.1016
A19: 0.7 | B19: 0.2509609351 | C19: -0.2434183824 | J19: 0.7 | K19: 0.2509609351 | L19: 0.7 | M19: 0.2368356546 | N19: 0.7 | O19: 0.2619598827 | Q19: 0.2583506115 | T19: 0.25 | U19: 0.3906641743 | V19: 1.2 | W19: 0.09071795329
A20: 0.8 | B20: 0.2278747616 | C20: -0.2186622877 | J20: 0.8 | K20: 0.2278747616 | L20: 0.8 | M20: 0.2210505452 | N20: 0.8 | O20: 0.2298236784 | Q20: 0.2177828876 | T20: 0.001 | U20: 0.5004312899 | V20: 1.4 | W20: 0.06081006263
A21: 0.9 | B21: 0.2071617375 | C21: -0.1959096219 | J21: 0.9 | K21: 0.2071617375 | L21: 0.9 | M21: 0.2067247045 | N21: 0.9 | O21: 0.2016695054 | Q21: 0.1835853511 | V21: 1.6 | W21: 0.04076220398
A22: 1 | B22: 0.1886350413 | C22: -0.1748917073 | J22: 1 | K22: 0.1886350413 | L22: 1 | M22: 0.1937859279 | N22: 1 | O22: 0.1770223976 | Q22: 0.1547577304 | V22: 1.8 | W22: 0.02732372245
A23: 1.1 | B23: 0.1721342672 | C23: -0.1553481591 | J23: 1.1 | K23: 0.1721342672 | L23: 1.1 | M23: 0.1821725441 | N23: 1.1 | O23: 0.1554725343 | Q23: 0.1304568503 | V23: 2 | W23: 0.01831563889
A24: 1.2 | B24: 0.1575248241 | C24: -0.1370222716 | J24: 1.2 | K24: 0.1575248241 | L24: 1.2 | M24: 0.171833322 | N24: 1.2 | O24: 0.1366703657 | Q24: 0.1099720243
A25: 1.3 | B25: 0.1446978145 | C25: -0.1196559969 | J25: 1.3 | K25: 0.1446978145 | L25: 1.3 | M25: 0.1627274802 | N25: 1.3 | O25: 0.1203237923 | Q25: 0.09270444684 | X25: 0 | Y25: 0.1016
A26: 1.4 | B26: 0.1335704422 | C26: -0.1029843662 | J26: 1.4 | K26: 0.1335704422 | L26: 1.4 | M26: 0.1548248041 | N26: 1.4 | O26: 0.1061978188 | Q26: 0.07815025006 | U26: 同じ反応率cA=0.1016を与えるL | X26: 4.42 | Y26: 0.1016
A27: 1.5 | B27: 0.1240870132 | C27: -0.08672917995 | J27: 1.5 | K27: 0.1240870132 | L27: 1.5 | M27: 0.1481058781 | N27: 1.5 | O27: 0.09411736732 | Q27: 0.06588760098 | U27: 完全混合 | V27: 押し出し流れ
A28: 1.6 | B28: 0.1162206125 | C28: -0.07059175497 | J28: 1.6 | K28: 0.1162206125 | L28: 1.6 | M28: 0.1425624395 | N28: 1.6 | O28: 0.08397430671 | Q28: 0.05557023725 | U28: L | V28: L
A29: 1.7 | B29: 0.1099755635 | C29: -0.05424447695 | J29: 1.7 | K29: 0.1099755635 | L29: 1.7 | M29: 0.1381978654 | N29: 1.7 | O29: 0.07574029554 | Q29: 0.04693614992 | U29: =(G4/G2/0.1016)*(G5-0.1016) -> 4.421259843 | V29: =-(G4/G2)*LN(0.1016/G5) -> 1.143355872 | W29: 2
A30: 1.8 | B30: 0.1053908047 | C30: -0.03732085552 | J30: 1.8 | K30: 0.1053908047 | L30: 1.8 | M30: 0.135027805 | N30: 1.8 | O30: 0.06948782328 | Q30: 0.03986015277 | U30: =U29/V29 -> 3.866914887 | W30: =W29/V29 -> 1.749236654
A31: 1.9 | B31: 0.10254435 | C31: -0.01940371409 | J31: 1.9 | K31: 0.10254435 | L31: 1.9 | M31: 0.1330809683 | N31: 1.9 | O31: 0.06542297681 | Q31: 0.0345430887
A32: 2 | B32: 0.1015590424 | C32: -1.106978507e-05 | J32: 2 | K32: 0.1015590424 | L32: 2 | M32: 0.1324000912 | N32: 2 | O32: 0.06393513087 | Q32: 0.03213527293
A33: 2.1 | B33: 0.1026098568 | C33: 0.02142083704 | J33: 2.1 | K33: 0.1026098568 | L33: 2.1 | M33: 0.1330430929 | N33: 2.1 | O33: 0.0656712023
A34: 2.2 | B34: 0.1059330684 | C34: 0.04555802097 | J34: 2.2 | K34: 0.1059330684 | L34: 2.2 | M34: 0.1350844488 | N34: 2.2 | O34: 0.07164567804
A35: 2.3 | B35: 0.1118376788 | C35: 0.0731935378 | J35: 2.3 | K35: 0.1118376788 | L35: 2.3 | M35: 0.1386168035 | N35: 2.3 | O35: 0.08340285072
A36: 2.4 | B36: 0.1207195739 | C36: 0.1052775541 | J36: 2.4 | K36: 0.1207195739 | L36: 2.4 | M36: 0.1437528534 | N36: 2.4 | O36: 0.1032553395
A37: 2.5 | B37: 0.1330790027 | C37: 0.1429538894 | J37: 2.5 | K37: 0.1330790027 | L37: 2.5 | M37: 0.1506275315 | N37: 2.5 | O37: 0.1346341622
A38: 2.6 | B38: 0.1495420929 | C38: 0.1876044815 | J38: 2.6 | K38: 0.1495420929 | L38: 2.6 | M38: 0.1594005315 | N38: 2.6 | O38: 0.1826020001
A39: 2.7 | B39: 0.170887281 | C39: 0.240903545 | J39: 2.7 | K39: 0.170887281 | L39: 2.7 | M39: 0.1702592173 | N39: 2.7 | O39: 0.2546052702
A40: 2.8 | B40: 0.1980777312 | C40: 0.3048835836 | J40: 2.8 | K40: 0.1980777312 | L40: 2.8 | M40: 0.1834219635 | N40: 2.8 | O40: 0.3615757094
A41: 2.9 | B41: 0.2323010562 | C41: 0.3820158938 | J41: 2.9 | K41: 0.2323010562 | L41: 2.9 | M41: 0.1991419871 | N41: 2.9 | O41: 0.5195435467
A42: 3 | B42: 0.2750179434 | C42: 0.4753087793 | J42: 3 | K42: 0.2750179434 | L42: 3 | M42: 0.2177117324 | N42: 3 | O42: 0.7519995378
